bitfinex-derivatives/quotes_BTCF0:USTF0_20240917
["timestamp","ask_amount","ask_price","bid_price","bid_amount"]
[1726540379996,0.0245889,57946.0,57945.0,1.50047877]
[1726540380594,0.05791486,57946.0,57945.0,1.50047877]
[1726540380895,0.0245889,57946.0,57945.0,1.50047877]
[1726540381096,0.05791502,57946.0,57945.0,1.50047877]
[1726540381411,0.1531198,57946.0,57945.0,1.50047877]
[1726540384693,0.15312247,57946.0,57945.0,1.50047877]
[1726540385297,0.32451047,57946.0,57945.0,1.50047877]
[1726540386298,0.15312247,57946.0,57945.0,1.50047877]
[1726540387108,0.0245889,57946.0,57945.0,1.76514971]
[1726540387300,0.00906342,57960.0,57948.0,0.086279]
[1726540387495,0.086263,57959.0,57956.0,0.0004]
[1726540388104,0.086263,57959.0,57956.0,0.086668]
[1726540388507,0.0638,57957.0,57956.0,0.086668]
[1726540388914,0.0768,57957.0,57956.0,0.086668]
[1726540389303,0.0768,57957.0,57956.0,0.087668]
[1726540389707,0.0768,57957.0,57956.0,0.088668]
[1726540394312,0.880706,57957.0,57956.0,0.0024]
[1726540395208,1.16415363,57957.0,57956.0,0.0024]
[1726540395412,1.00924158,57957.0,57956.0,0.0024]
[1726540395809,0.49160158,57957.0,57956.0,0.0024]
[1726540396909,0.64677216,57957.0,57956.0,0.0024]
[1726540397221,0.49160158,57957.0,57956.0,0.0024]
[1726540398811,0.44678815,57957.0,57956.0,0.0024]
[1726540399119,0.23864366,57957.0,57956.0,0.0024]
[1726540399913,0.23864366,57957.0,57956.0,0.1324]
[1726540400234,0.23864366,57957.0,57956.0,0.218668]
[1726540400421,0.09857766,57957.0,57956.0,0.218668]
[1726540402219,0.023,57957.0,57956.0,0.42566314]
[1726540403325,0.023,57957.0,57956.0,0.30467411]
[1726540404114,0.023,57957.0,57956.0,0.42586928]
[1726540406424,0.023,57957.0,57956.0,0.33986317]
[1726540410223,0.023,57957.0,57956.0,0.218668]
[1726540410534,0.109266,57957.0,57956.0,0.0024]
[1726540411219,0.109266,57957.0,57956.0,0.05414699]
[1726540411835,0.086271,57954.0,57953.0,0.06899213]
[1726540412024,0.216671,57954.0,57953.0,0.06899213]
[1726540412325,0.734311,57954.0,57953.0,0.06899213]
[1726540413133,0.735311,57954.0,57953.0,0.06999213]
[1726540413822,0.217671,57954.0,57953.0,0.06999213]
[1726540414727,0.231671,57954.0,57953.0,0.07099213]
[1726540415531,0.835582,57954.0,57953.0,0.002]
[1726540415828,0.317942,57954.0,57953.0,0.002]
[1726540416128,0.678742,57954.0,57953.0,0.002]
[1726540416525,0.317942,57954.0,57953.0,0.002]
[1726540417225,0.44648406,57954.0,57953.0,0.002]
[1726540417621,0.80728406,57954.0,57953.0,0.002]
[1726540417930,0.97940856,57954.0,57953.0,0.002]
[1726540418228,0.80728406,57954.0,57953.0,0.002]
[1726540418531,0.80728631,57954.0,57953.0,0.002]
[1726540420328,0.96246471,57954.0,57953.0,0.002]
[1726540420520,0.80728631,57954.0,57953.0,0.002]
[1726540421324,0.81665756,57954.0,57953.0,0.002]
[1726540422626,0.97177644,57954.0,57953.0,0.002]
[1726540424723,0.172556,57949.0,57948.0,0.0025884]
[1726540424920,0.44082304,57949.0,57948.0,0.0025884]
[1726540425130,0.51640584,57949.0,57948.0,0.0025884]
[1726540425330,0.302956,57949.0,57948.0,0.0025884]
[1726540425927,0.316956,57949.0,57948.0,0.0035884]
[1726540426132,0.318956,57949.0,57948.0,0.0045884]
[1726540427337,1.797476,57949.0,57948.0,0.0045884]
[1726540427639,1.797476,57949.0,57948.0,0.002]
[1726540428928,1.783476,57949.0,57948.0,0.001]
[1726540429125,1.783476,57949.0,57948.0,0.002]
[1726540429126,1.797476,57949.0,57948.0,0.002]
[1726540429335,1.798476,57949.0,57948.0,0.002]
[1726540430236,1.437676,57949.0,57948.0,0.002]
[1726540430730,1.798476,57949.0,57948.0,0.002]
[1726540432127,1.437676,57949.0,57948.0,0.002]
[1726540432330,1.92761519,57949.0,57948.0,0.002]
[1726540432937,1.9782138,57949.0,57948.0,0.002]
[1726540433233,1.6174138,57949.0,57948.0,0.002]
[1726540433434,1.9782138,57949.0,57948.0,0.002]
[1726540434241,1.6174138,57949.0,57948.0,0.002]
[1726540434440,1.9782138,57949.0,57948.0,0.002]
[1726540435730,1.6174138,57949.0,57948.0,0.002]
[1726540436129,1.9782138,57949.0,57948.0,0.002]
[1726540437029,1.3782138,57949.0,57948.0,0.002]
[1726540437736,1.37820457,57949.0,57948.0,0.002]
[1726540439334,1.32760457,57949.0,57948.0,0.002]
[1726540439643,0.59360657,57949.0,57948.0,0.002]
[1726540439844,0.76586584,57949.0,57948.0,0.002]
[1726540440029,0.59360657,57949.0,57948.0,0.002]
[1726540440229,0.464478,57949.0,57948.0,0.002]
[1726540440833,0.3782,57949.0,57948.0,0.002]
[1726540442744,0.3782,57949.0,57948.0,0.51807113]
[1726540442745,0.0174,57949.0,57948.0,0.51807113]
[1726540442947,0.086272,57953.0,57950.0,0.086276]
[1726540443255,0.004,57959.0,57953.0,0.086272]
[1726540443544,0.090263,57959.0,57954.0,0.08627]
[1726540443845,0.086263,57959.0,57958.0,0.0004]
[1726540445150,0.09542358,57959.0,57958.0,0.0004]
[1726540445348,0.09742358,57959.0,57958.0,0.0014]
[1726540445653,0.09842358,57959.0,57958.0,0.0014]
[1726540446044,0.09642358,57959.0,57958.0,0.0004]
[1726540446241,0.09842358,57959.0,57958.0,0.0024]
[1726540447346,0.13284486,57959.0,57958.0,0.0024]
[1726540452354,0.11547043,57959.0,57958.0,0.218665]
[1726540452543,0.10630985,57959.0,57958.0,0.218665]
[1726540452747,0.0053884,57960.0,57959.0,0.086263]
[1726540452949,0.10330985,57963.0,57962.0,0.086259]
[1726540453157,0.10330985,57965.0,57964.0,0.086256]
[1726540454053,0.10330985,57966.0,57965.0,0.086254]
[1726540454254,0.10330985,57967.0,57965.0,0.087054]
[1726540454451,0.10330985,57967.0,57966.0,0.0468]
[1726540454649,0.10330985,57967.0,57966.0,0.046]
[1726540455255,0.03489167,57967.0,57966.0,0.046]
[1726540455561,0.03489167,57967.0,57965.0,0.087054]
[1726540455562,0.13008381,57967.0,57965.0,0.0028]
[1726540455782,0.13008381,57966.0,57965.0,0.0028]
[1726540455958,0.13008381,57966.0,57965.0,0.0018]
[1726540456159,0.13008381,57966.0,57965.0,0.088054]
[1726540456754,0.13008381,57966.0,57965.0,0.087054]
[1726540458053,0.13008381,57966.0,57965.0,0.088054]
[1726540458557,0.13008381,57966.0,57965.0,0.089054]
[1726540462361,0.09542447,57968.0,57965.0,0.089054]
[1726540462872,0.09542447,57968.0,57967.0,0.0008]
[1726540465266,0.09542447,57968.0,57967.0,0.0018]
[1726540465655,0.09542447,57968.0,57967.0,0.0028]
[1726540468274,0.19853122,57968.0,57967.0,0.0028]
[1726540468664,0.09542447,57968.0,57967.0,0.0028]
[1726540469369,0.19853122,57968.0,57967.0,0.0028]
[1726540470473,0.22425703,57968.0,57967.0,0.0028]
[1726540471666,0.28612854,57968.0,57967.0,0.0028]
[1726540473271,0.15729598,57968.0,57967.0,0.0028]
[1726540473472,0.28615674,57968.0,57967.0,0.0028]
[1726540474176,0.28615674,57968.0,57967.0,0.00173371]
[1726540474369,0.28695674,57968.0,57967.0,0.00173371]
[1726540477672,0.09622447,57968.0,57967.0,0.00173371]
[1726540480173,0.19959034,57968.0,57967.0,0.00173371]
[1726540481178,0.09622447,57968.0,57967.0,0.00173371]
[1726540482783,0.12995681,57968.0,57967.0,0.00173371]
[1726540484072,0.09622447,57968.0,57967.0,0.00173371]
[1726540484276,0.12998654,57968.0,57967.0,0.00173371]
[1726540484684,0.28705188,57968.0,57967.0,0.00173371]
[1726540485682,0.2870422,57968.0,57967.0,0.00173371]
[1726540491888,0.5182932,57968.0,57967.0,0.00173371]
[1726540492687,0.5182932,57968.0,57967.0,0.00107553]
[1726540492887,0.36122786,57968.0,57967.0,0.00107553]
[1726540496388,0.36111531,57968.0,57967.0,0.00107553]
[1726540500486,0.36113587,57968.0,57967.0,0.00107553]
[1726540504092,0.36106221,57968.0,57967.0,0.00107553]
[1726540505495,0.72186221,57968.0,57967.0,0.00107553]
[1726540507884,1.10276535,57968.0,57967.0,0.00066778]
[1726540508198,1.01651435,57968.0,57967.0,0.00066778]
[1726540508397,0.7926842,57968.0,57967.0,0.00066778]
[1726540514800,0.63561121,57968.0,57967.0,0.00066778]
[1726540517694,0.58641121,57968.0,57967.0,0.00066778]
[1726540518404,0.70718832,57968.0,57967.0,0.00066778]
[1726540520202,0.58641121,57968.0,57967.0,0.00066778]
[1726540520605,0.53701121,57968.0,57967.0,0.00066778]
[1726540521296,0.57925734,57968.0,57967.0,0.00066778]
[1726540522892,0.69408476,57968.0,57967.0,0.00041483]
[1726540529808,0.65784027,57968.0,57967.0,0.00041483]
[1726540530508,0.49061121,57968.0,57967.0,0.00041483]
[1726540530920,0.04356121,57968.0,57967.0,0.00041483]
[1726540531106,0.04356121,57968.0,57967.0,0.08666583]
[1726540531311,0.00997447,57968.0,57967.0,0.08666583]
[1726540531711,0.11348907,57968.0,57967.0,0.08666583]
[1726540531912,0.00997447,57968.0,57967.0,0.08666583]
[1726540532229,0.11349105,57968.0,57967.0,0.08666583]
[1726540532416,0.11347333,57968.0,57967.0,0.08666583]
[1726540533219,0.00997447,57968.0,57967.0,0.08666583]
[1726540541430,0.11336482,57968.0,57967.0,0.08666583]
[1726540541618,0.00997447,57968.0,57967.0,0.08666583]
[1726540544919,0.00997447,57968.0,57966.0,0.04688506]
[1726540544920,0.3630007,57968.0,57966.0,0.04688506]
[1726540545123,0.1286294,57967.0,57966.0,0.13313806]
[1726540546221,0.1286294,57967.0,57966.0,0.13413806]
[1726540546425,0.1286294,57967.0,57966.0,0.13513806]
[1726540547040,0.1296294,57967.0,57966.0,0.13513806]
[1726540547225,0.12950511,57967.0,57966.0,0.13513806]
[1726540552838,0.03431944,57967.0,57966.0,0.088253]
[1726540553034,0.001,57967.0,57963.0,0.06064216]
[1726540553337,0.001,57967.0,57966.0,0.086253]
[1726540555029,0.00997447,57968.0,57967.0,0.086251]
[1726540555232,0.00997447,57968.0,57967.0,0.087051]
[1726540556438,0.01197447,57968.0,57967.0,0.088051]
[1726540556766,0.01497447,57968.0,57967.0,0.089051]
[1726540558546,0.01497447,57968.0,57967.0,0.14071868]
[1726540559936,0.09053311,57968.0,57967.0,0.089051]
[1726540560136,0.1434777,57968.0,57967.0,0.089051]
[1726540565152,0.14347826,57968.0,57967.0,0.089051]
[1726540567941,0.01497447,57968.0,57967.0,0.089051]
[1726540570645,0.0058,57968.0,57967.0,0.089051]
[1726540574945,0.08135739,57968.0,57967.0,0.089051]
[1726540575244,0.1343011,57968.0,57967.0,0.089051]
[1726540575753,0.15333143,57977.0,57976.0,0.086238]
[1726540575951,0.17067323,57985.0,57977.0,0.086236]
[1726540575952,0.18980838,57983.0,57977.0,0.086236]
[1726540576265,0.36048161,57985.0,57984.0,0.086226]
[1726540576457,0.0509,57990.0,57989.0,0.086218]
[1726540576649,0.0509,57990.0,57989.0,0.216218]
[1726540576845,0.0509,57990.0,57989.0,0.217018]
[1726540577047,0.0509,57990.0,57989.0,0.216218]
[1726540577853,0.0519,57990.0,57989.0,0.217218]
[1726540578742,0.0519,57990.0,57989.0,0.218218]
[1726540580054,0.0519,57990.0,57989.0,0.579018]
[1726540580756,0.10482197,57990.0,57989.0,0.579018]
[1726540581357,0.001,57990.0,57989.0,0.665236]
[1726540581559,0.1012,57999.0,57997.0,0.086207]
[1726540581853,0.3608,58010.0,57999.0,0.086204]
[1726540581854,0.051,58009.0,57999.0,0.086204]
[1726540582060,0.15411163,58007.0,58005.0,0.13]
[1726540582358,0.1012,58007.0,58006.0,0.086193]
[1726540583947,0.1012,58007.0,58006.0,0.087193]
[1726540584351,0.1012,58007.0,58006.0,0.088193]
[1726540586255,0.1012,58007.0,58006.0,0.218193]
[1726540590967,0.1012,58007.0,58006.0,0.578993]
[1726540595165,0.1012,58007.0,58006.0,0.448993]
[1726540595463,0.1012,58007.0,58006.0,0.578993]
[1726540596955,0.19631311,58007.0,58006.0,0.43892521]
[1726540597769,0.19631311,58007.0,58006.0,0.52511821]
[1726540597966,0.19631311,58007.0,58006.0,0.576993]
[1726540598559,0.19631293,58007.0,58006.0,0.576993]
[1726540600569,0.2552281,58007.0,58006.0,0.576993]
[1726540600764,0.35034103,58007.0,58006.0,0.576993]
[1726540600967,0.35034117,58007.0,58006.0,0.576993]
[1726540601264,0.19631307,58007.0,58006.0,0.576993]
[1726540602164,0.19831307,58007.0,58006.0,0.578993]
[1726540603373,0.31646084,58007.0,58006.0,0.578993]
[1726540603574,0.36936582,58007.0,58006.0,0.578993]
[1726540605168,0.1032,58007.0,58006.0,0.578993]
[1726540606470,0.002,58007.0,58006.0,0.578993]
[1726540607368,0.002,58007.0,58006.0,1.696193]
[1726540607567,0.002,58007.0,58006.0,1.782386]
[1726540608871,0.00258671,58011.0,58010.0,0.086187]
[1726540609172,0.004,58018.0,58017.0,0.086177]
[1726540609372,0.0777,58023.0,58022.0,0.086169]
[1726540609575,0.0777,58023.0,58022.0,0.216969]
[1726540609877,0.0777,58023.0,58022.0,0.216169]
[1726540610305,0.03,58023.0,58022.0,0.216169]
[1726540610470,0.03,58023.0,58022.0,0.576969]
[1726540610973,0.1374896,58042.0,58023.0,0.517]
[1726540611186,0.009197,58050.0,58042.0,0.13]
[1726540611474,0.0478,58052.0,58049.0,0.4916]
[1726540611677,0.051,58055.0,58051.0,0.0008]
[1726540611868,0.051,58055.0,58054.0,0.1308]
[1726540612068,0.21671357,58055.0,58054.0,0.27310427]
[1726540612269,0.15680662,58055.0,58054.0,0.37005666]
[1726540612571,0.09502722,58055.0,58054.0,0.37005666]
[1726540612965,0.06176961,58055.0,58054.0,0.37005666]
[1726540613179,0.06176961,58055.0,58054.0,0.45617866]
[1726540613374,0.06176961,58059.0,58054.0,0.37005666]
[1726540613574,0.22262394,58062.0,58054.0,0.37005666]
[1726540613575,0.06176961,58061.0,58058.0,0.1308]
[1726540613876,0.06176961,58060.0,58058.0,0.0008]
[1726540614194,0.22262394,58064.0,58061.0,0.086111]
[1726540614369,0.06176961,58070.0,58063.0,0.447707]
[1726540614570,0.5608,58065.0,58058.0,0.0048]
[1726540614768,0.086109,58063.0,58058.0,0.001]
[1726540614975,0.0494,58062.0,58058.0,0.001]
[1726540615476,0.0494,58062.0,58055.0,0.3608]
[1726540615680,0.086109,58063.0,58057.0,0.2]
[1726540615986,0.0494,58063.0,58061.0,0.2]
[1726540616175,0.0494,58063.0,58062.0,0.0008]
[1726540617681,0.0494,58063.0,58062.0,0.0018]
[1726540618179,0.08611,58062.0,58055.0,0.21902008]
[1726540618370,0.18733639,58057.0,58055.0,0.21902008]
[1726540618684,0.05285569,58056.0,58055.0,0.21902008]
[1726540618878,0.05285569,58056.0,58052.0,0.20258373]
[1726540619181,0.17029048,58053.0,58052.0,0.20258373]
[1726540619377,0.22314617,58053.0,58052.0,0.00258373]
[1726540619578,0.05285569,58053.0,58052.0,0.00258373]
[1726540620369,0.18733639,58054.0,58052.0,0.00258373]
[1726540620575,0.18733639,58054.0,58053.0,0.0008]
[1726540621782,0.18833639,58054.0,58053.0,0.0018]
[1726540622089,0.18833639,58054.0,58053.0,0.0028]
[1726540622090,0.19033639,58054.0,58053.0,0.0028]
[1726540623183,0.27645839,58054.0,58053.0,0.0028]
[1726540627186,0.27645839,58054.0,58053.0,0.088923]
[1726540627187,0.19033639,58054.0,58053.0,0.088923]
[1726540627791,0.003,58054.0,58053.0,0.088923]
[1726540628291,0.0016,58055.0,58054.0,0.086122]
[1726540628591,0.0016,58055.0,58054.0,0.086522]
[1726540629385,0.0026,58055.0,58054.0,0.087522]
[1726540629596,0.0036,58055.0,58054.0,0.088522]
[1726540632805,0.0026,58055.0,58054.0,0.088522]
[1726540633393,0.0026,58055.0,58054.0,0.30307994]
[1726540634185,0.0026,58055.0,58054.0,0.21776285]
[1726540634386,0.0026,58055.0,58054.0,0.30266386]
[1726540634788,0.08872,58055.0,58054.0,0.30266386]
[1726540635084,0.08872,58055.0,58054.0,0.0024]
[1726540635284,0.3608,58055.0,58054.0,0.0024]
[1726540636087,0.44692,58055.0,58054.0,0.0024]
[1726540636295,0.3608,58055.0,58054.0,0.0024]
[1726540639686,0.3608,58055.0,58054.0,0.0014]
[1726540639888,0.3608,58055.0,58054.0,0.0024]
[1726540640388,0.44692,58055.0,58054.0,0.0024]
[1726540642296,0.39521468,58055.0,58054.0,0.46698485]
[1726540644700,0.39521468,58055.0,58054.0,0.66584009]
[1726540644903,0.39521468,58055.0,58054.0,0.87006381]
[1726540645903,0.48133468,58055.0,58054.0,0.46584009]
[1726540646095,0.48133468,58055.0,58054.0,0.60289761]
[1726540646994,0.76745468,58055.0,58054.0,0.46584009]
[1726540647201,1.28421468,58055.0,58054.0,0.04071153]
[1726540647413,0.775126,58054.0,58053.0,0.10029566]
[1726540647704,0.775126,58054.0,58049.0,0.0025839]
[1726540647705,0.08614,58042.0,58040.0,0.01058439]
[1726540647899,0.08614,58042.0,58040.0,0.00258439]
[1726540647900,0.533082,58041.0,58040.0,0.00258439]
[1726540648410,0.533082,58041.0,58040.0,3.9e-07]
[1726540649097,0.533082,58041.0,58040.0,0.00100039]
[1726540649493,0.533082,58041.0,58040.0,0.00200039]
[1726540650806,0.446941,58041.0,58040.0,0.00200039]
[1726540651902,0.446941,58041.0,58040.0,0.20200039]
[1726540652101,0.3608,58041.0,58040.0,0.28814339]
[1726540652302,0.3633844,58047.0,58040.0,1.31888039]
[1726540652501,0.0025844,58047.0,58046.0,0.2008]
[1726540652708,0.0025844,58047.0,58046.0,0.286934]
[1726540653201,0.3608,58052.0,58051.0,0.086126]
[1726540653403,0.3608,58052.0,58051.0,0.286926]
[1726540653602,0.0004,58055.0,58051.0,0.7176]
[1726540653905,0.0004,58055.0,58054.0,0.086122]
[1726540654411,0.0004,58055.0,58054.0,0.086922]
[1726540654909,0.0084,58055.0,58054.0,0.086922]
[1726540655905,0.0004,58055.0,58054.0,0.086922]
[1726540656098,0.0144,58055.0,58054.0,0.086922]
[1726540656298,0.0274,58055.0,58054.0,0.087922]
[1726540657509,0.32787886,58057.0,58054.0,0.087922]
[1726540657705,0.012,58055.0,58054.0,0.088922]
[1726540657908,0.09812,58055.0,58054.0,0.002]
[1726540658407,0.09812,58055.0,58054.0,0.07034236]
[1726540658614,0.012,58055.0,58053.0,0.05126519]
[1726540658907,0.086123,58053.0,58052.0,0.05126519]
[1726540659104,0.086125,58052.0,58051.0,0.05384884]
[1726540659406,0.446925,58052.0,58051.0,0.00258365]
[1726540660512,0.447925,58052.0,58051.0,0.05486026]
[1726540661810,0.447925,58052.0,58051.0,0.05586026]
[1726540662405,0.447925,58052.0,58051.0,0.00458365]
[1726540666303,0.087125,58052.0,58051.0,0.00458365]
[1726540667716,0.087125,58052.0,58051.0,0.09070965]
[1726540670211,0.001,58052.0,58051.0,0.09070965]
[1726540672415,0.3608,58054.0,58052.0,0.086124]
[1726540672618,0.3608,58054.0,58053.0,0.086123]
[1726540672821,0.3608,58054.0,58053.0,0.086923]
[1726540673724,0.446922,58054.0,58053.0,0.086923]
[1726540673926,0.447922,58054.0,58053.0,0.087923]
[1726540674623,0.448922,58054.0,58053.0,0.087923]
[1726540675215,0.447922,58054.0,58053.0,0.13921103]
[1726540675417,0.448922,58054.0,58053.0,0.14021103]
[1726540675819,0.448922,58054.0,58053.0,0.05408803]
[1726540676328,0.447922,58054.0,58053.0,0.05408803]
[1726540677319,0.447922,58054.0,58053.0,0.0028]
[1726540677628,0.446922,58054.0,58053.0,0.0018]
[1726540677820,0.447922,58054.0,58053.0,0.0028]
[1726540678224,0.447922,58054.0,58053.0,0.05408803]
[1726540679130,0.447922,58054.0,58053.0,0.0028]
[1726540682221,0.447922,58054.0,58053.0,0.05414604]
[1726540685323,0.447922,58054.0,58053.0,0.0028]
[1726540687122,0.447922,58054.0,58053.0,0.07118404]
[1726540687521,0.54296872,58054.0,58053.0,0.0028]
[1726540688235,0.54296872,58054.0,58053.0,0.0018]
[1726540688437,0.54396872,58054.0,58053.0,0.0028]
[1726540689142,0.54296872,58054.0,58053.0,0.0018]
[1726540689329,0.54396872,58054.0,58053.0,0.0028]
[1726540690130,0.71420608,58054.0,58053.0,0.0028]
[1726540691334,0.7142061,58054.0,58053.0,0.0028]
[1726540691640,0.54396874,58054.0,58053.0,0.088923]
[1726540692030,0.6990267,58054.0,58053.0,0.088923]
[1726540692237,0.54396874,58054.0,58053.0,0.088923]
[1726540693038,0.6990267,58054.0,58053.0,0.088923]
[1726540693831,0.54396874,58054.0,58053.0,0.088923]
[1726540694229,0.40497866,58054.0,58053.0,0.088923]
[1726540694441,0.4578448,58054.0,58053.0,0.088923]
[1726540694629,0.40497866,58054.0,58053.0,0.088923]
[1726540694833,0.457845,58054.0,58053.0,0.088923]
[1726540695139,0.61290296,58054.0,58053.0,0.088923]
[1726540695337,0.456845,58054.0,58053.0,0.087923]
[1726540695638,0.456845,58054.0,58053.0,0.21487597]
[1726540695639,0.3628,58054.0,58053.0,0.21487597]
[1726540697851,0.3628,58054.0,58053.0,0.31745203]
[1726540698544,0.3628,58054.0,58053.0,0.21487597]
[1726540698839,0.3618,58054.0,58053.0,0.21387597]
[1726540699145,0.3618,58054.0,58053.0,0.21487597]
[1726540699146,0.3628,58054.0,58053.0,0.21487597]
[1726540699529,0.3628,58054.0,58053.0,0.21387597]
[1726540699530,0.3618,58054.0,58053.0,0.21387597]
[1726540699743,0.3628,58054.0,58053.0,0.21487597]
[1726540700340,0.3618,58054.0,58053.0,0.21387597]
[1726540700540,0.3628,58054.0,58053.0,0.21487597]
[1726540701049,0.3628,58054.0,58053.0,0.2148674]
[1726540701738,0.002,58054.0,58053.0,0.2148674]
[1726540702653,0.002,58054.0,58053.0,0.088923]
[1726540710352,0.03526984,58054.0,58053.0,0.088923]
[1726540710542,0.13031383,58054.0,58053.0,0.088923]
[1726540715750,0.13031295,58054.0,58053.0,0.088923]
[1726540717442,0.495259,58057.0,58056.0,0.086119]
[1726540717752,0.493819,58057.0,58056.0,0.29766083]
[1726540718556,0.494819,58057.0,58056.0,0.29866083]
[1726540719848,0.4087,58057.0,58056.0,0.29866083]
[1726540720052,0.494817,58057.0,58056.0,0.21389501]
[1726540720552,0.494817,58057.0,58056.0,0.21388847]
[1726540723758,0.493817,58057.0,58056.0,0.21388847]
[1726540725556,0.62212874,58057.0,58056.0,0.088919]
[1726540725760,0.68390189,58057.0,58056.0,0.088919]
[1726540726465,0.62212874,58057.0,58056.0,0.088919]
[1726540726664,0.68390189,58057.0,58056.0,0.088919]
[1726540728956,0.23698489,58057.0,58056.0,0.088919]
[1726540729154,0.17521174,58057.0,58056.0,0.088919]
[1726540730054,0.17520469,58057.0,58056.0,0.088919]
[1726540732471,0.0469,58057.0,58056.0,0.088919]
[1726540735556,0.263017,58057.0,58056.0,0.15754328]
[1726540736263,0.263017,58057.0,58056.0,0.088919]
[1726540738579,0.263017,58057.0,58056.0,0.15754328]
[1726540740365,0.263017,58057.0,58056.0,0.088919]
[1726540740366,0.39132856,58057.0,58056.0,0.088919]
[1726540740567,0.26132856,58057.0,58056.0,0.088919]
[1726540743475,0.32310096,58057.0,58056.0,0.088919]
[1726540744377,0.32310019,58057.0,58056.0,0.088919]
[1726540746474,0.26132779,58057.0,58056.0,0.088919]
[1726540746779,0.32310019,58057.0,58056.0,0.088919]
[1726540747475,0.133017,58057.0,58056.0,0.213809]
[1726540747973,0.133017,58057.0,58056.0,0.21381129]
[1726540749180,0.133017,58057.0,58056.0,0.29952844]
[1726540749568,0.133017,58057.0,58056.0,0.21381129]
[1726540750070,0.133017,58057.0,58056.0,0.12769229]
[1726540750571,0.133017,58057.0,58056.0,0.21341174]
[1726540750982,0.493817,58057.0,58056.0,0.21341174]
[1726540751472,0.493817,58057.0,58056.0,0.21341135]
[1726540751977,0.493817,58057.0,58056.0,0.12769229]
[1726540752482,0.493817,58057.0,58056.0,0.21341172]
[1726540752674,0.493817,58057.0,58056.0,0.12769229]
[1726540752973,0.493817,58057.0,58056.0,0.21345479]
[1726540753480,0.493817,58057.0,58056.0,0.12773187]
[1726540754281,0.493817,58057.0,58056.0,0.21345897]
[1726540754977,0.493817,58057.0,58056.0,0.0885271]
[1726540755581,0.62212867,58057.0,58056.0,0.0028]
[1726540756580,0.6221284,58057.0,58056.0,0.0028]
[1726540761279,0.7943961,58057.0,58056.0,0.0028]
[1726540762078,0.8805131,58057.0,58056.0,0.0028]
[1726540762283,0.9000532,58057.0,58049.0,0.004]
[1726540762486,0.086132,58047.0,58046.0,0.004]
[1726540762786,0.086132,58047.0,58046.0,0.20964476]
[1726540762787,0.17303667,58047.0,58046.0,0.20964476]
[1726540763090,0.086134,58046.0,58045.0,0.08576519]
[1726540763383,0.148234,58046.0,58043.0,0.08572935]
[1726540763583,0.216137,58044.0,58043.0,0.08572935]
[1726540763775,0.085138,58043.0,58042.0,0.08572935]
[1726540763980,0.215138,58043.0,58042.0,0.20942743]
[1726540764274,0.08614,58042.0,58041.0,0.08572935]
[1726540764481,0.13,58043.0,58040.0,0.08572974]
[1726540764680,0.216138,58043.0,58042.0,0.0008]
[1726540765285,0.216138,58043.0,58042.0,0.06936669]
[1726540765486,0.216138,58043.0,58042.0,0.0008]
[1726540766189,0.218138,58043.0,58042.0,0.0008]
[1726540766788,0.220138,58043.0,58042.0,0.0008]
[1726540766989,0.306276,58043.0,58042.0,0.0008]
[1726540767189,1.423156,58043.0,58042.0,0.0008]
[1726540769189,0.823156,58043.0,58042.0,0.0008]
[1726540769392,0.829156,58043.0,58042.0,0.0008]
[1726540770203,1.429156,58043.0,58042.0,0.0008]
[1726540772808,1.789956,58043.0,58042.0,0.0008]
[1726540772994,1.189956,58043.0,58042.0,0.0008]
[1726540775905,0.673076,58043.0,58042.0,0.0008]
[1726540777605,0.70635598,58043.0,58042.0,0.0008]
[1726540779008,0.82660632,58043.0,58042.0,0.0008]
[1726540779714,0.74854627,58043.0,58042.0,0.0008]
[1726540781813,0.74854626,58043.0,58042.0,0.0008]
[1726540782213,0.74894626,58043.0,58042.0,0.0008]
[1726540782417,0.80182892,58043.0,58042.0,0.0008]
[1726540784410,0.95685955,58043.0,58042.0,0.0008]
[1726540785407,0.80182892,58043.0,58042.0,0.0008]
[1726540785618,0.673476,58043.0,58042.0,0.0008]
[1726540787407,0.457338,58043.0,58042.0,0.0008]
[1726540787607,0.587338,58043.0,58042.0,0.0008]
[1726540788417,0.673476,58043.0,58042.0,0.0008]
[1726540790121,0.543476,58043.0,58042.0,0.0008]
[1726540790410,0.673476,58043.0,58042.0,0.0008]
[1726540794620,0.312676,58043.0,58042.0,0.0008]
[1726540794822,1.034276,58043.0,58042.0,0.0008]
[1726540795507,1.034276,58043.0,58042.0,0.05215547]
[1726540799619,1.224428,58043.0,58042.0,0.05215547]
[1726540799817,1.224428,58043.0,58042.0,0.0008]
[1726540800926,1.16263304,58043.0,58042.0,0.0008]
[1726540801825,1.31776268,58043.0,58042.0,0.0008]
[1726540805925,1.22442799,58043.0,58042.0,0.0008]
[1726540806318,1.33499813,58043.0,58042.0,0.0008]
[1726540807820,1.034276,58043.0,58042.0,0.0008]
[1726540809125,0.904276,58043.0,58042.0,0.06927396]
[1726540809326,0.732,58043.0,58042.0,0.21694]
[1726540809526,0.22810057,58043.0,58042.0,1.45754426]
[1726540809726,0.086134,58046.0,58042.0,1.5602552]
[1726540810037,0.09271331,58050.0,58045.0,0.08570955]
[1726540810225,0.08871331,58050.0,58049.0,0.06856992]
[1726540810426,0.086131,58048.0,58047.0,0.06856992]
[1726540810631,0.0004,58048.0,58047.0,0.5168]
[1726540810933,0.01195124,58050.0,58047.0,1.202932]
[1726540811224,0.01195124,58050.0,58049.0,0.1304]
[1726540811225,0.00258431,58050.0,58049.0,0.1304]
[1726540811425,0.00258431,58050.0,58049.0,0.6472]
[1726540811627,0.00258431,58050.0,58049.0,1.2472]
[1726540812735,0.00258431,58050.0,58049.0,1.31568028]
[1726540813037,0.00258431,58050.0,58049.0,0.71568028]
[1726540813421,0.00458431,58050.0,58049.0,1.334329]
[1726540813633,0.00458431,58050.0,58049.0,0.734329]
[1726540813930,0.00458431,58050.0,58049.0,0.735329]
[1726540814132,0.00458431,58050.0,58049.0,0.795429]
[1726540814635,0.00458431,58050.0,58049.0,1.395429]
[1726540814833,0.03785735,58050.0,58049.0,1.395429]
[1726540815130,0.13291048,58050.0,58049.0,1.395429]